bitfinex/quotes_ETHUSD_20250725
["timestamp","ask_amount","ask_price","bid_price","bid_amount"]
[1753401601738,0.002,3709.4,3709.3,19.4274022]
[1753401601967,0.002,3709.4,3709.3,12.5646742]
[1753401602173,0.002,3709.4,3709.3,13.9432972]
[1753401603071,0.002,3709.4,3709.3,27.2525692]
[1753401603949,0.002,3709.4,3709.3,24.5525692]
[1753401604158,0.002,3709.4,3709.3,33.1130612]
[1753401604362,0.042,3710.9,3709.3,33.1130612]
[1753401604651,1.2747,3711.2,3710.0,1.359]
[1753401604850,1.2747,3711.2,3711.1,0.1344]
[1753401605460,1.3064,3711.2,3711.1,4.3364]
[1753401605657,0.9283,3711.2,3711.1,4.3364]
[1753401605865,3.62284623,3711.2,3711.1,0.1344]
[1753401606150,4.43524623,3711.2,3711.1,4.3394]
[1753401606399,4.43524623,3711.2,3710.1,7.012]
[1753401606564,0.767,3710.5,3710.1,7.012]
[1753401606899,0.767,3710.7,3710.2,4.206]
[1753401607122,0.9263,3710.6,3710.4,0.1344]
[1753401607250,2.69512721,3710.4,3710.3,4.209]
[1753401607454,0.9263,3710.4,3710.3,4.209]
[1753401607686,0.9263,3710.4,3710.3,4.3434]
[1753401608190,3.62142721,3710.4,3710.3,4.3434]
[1753401608573,3.62142721,3710.4,3710.3,0.1344]
[1753401608774,3.62142721,3710.4,3710.3,4.3534]
[1753401609289,4.38842721,3710.4,3710.3,4.3534]
[1753401610006,2.69541778,3710.0,3709.9,4.22]
[1753401610217,4.41041778,3710.0,3709.9,4.22]
[1753401610418,2.69549044,3709.9,3708.9,2.69620048]
[1753401610704,3.48469913,3709.2,3708.7,7.563453]
[1753401610913,3.48469913,3709.2,3709.0,4.22]
[1753401611202,4.41099913,3709.2,3709.1,0.1752]
[1753401612011,0.8245,3709.8,3709.1,0.61472]
[1753401612213,3.14296256,3709.7,3709.2,0.55]
[1753401612506,3.14301602,3709.6,3709.2,0.55]
[1753401612727,2.69592645,3709.3,3709.1,0.04]
[1753401612901,0.7717,3709.2,3709.1,0.04]
[1753401613096,1.698,3709.2,3709.1,4.26]
[1753401613404,4.39399913,3709.2,3709.1,4.3952]
[1753401613934,0.7717,3709.2,3709.1,4.3952]
[1753401614100,0.7622,3709.5,3709.1,5.10704337]
[1753401614302,2.69586788,3709.4,3709.1,4.3952]
[1753401614632,2.69586788,3709.4,3709.1,4.26]
[1753401614633,2.69599913,3709.2,3709.1,4.26]
[1753401614819,3.45679913,3709.2,3709.1,0.04]
[1753401614994,4.38309913,3709.2,3709.1,4.3942]
[1753401615204,4.38309913,3709.2,3709.1,4.3952]
[1753401615608,1.6871,3709.2,3709.1,4.3952]
[1753401616014,4.38309913,3709.2,3709.1,4.3952]
[1753401616214,1.6871,3709.2,3709.1,4.3952]
[1753401617114,1.2244,3709.6,3709.1,4.3952]
[1753401617625,1.2244,3709.6,3709.5,0.1344]
[1753401618033,3.45820843,3709.6,3709.5,4.216]
[1753401618426,4.37450843,3709.6,3709.5,4.216]
[1753401618922,4.37450843,3709.6,3709.4,0.1344]
[1753401618923,2.6957811,3709.5,3709.4,0.1344]
[1753401619256,4.3643811,3709.5,3709.4,0.1344]
[1753401619549,2.69599913,3709.2,3709.1,4.257]
[1753401619753,0.9163,3709.2,3709.1,4.3922]
[1753401620912,3.61229913,3709.2,3709.1,4.3922]
[1753401621535,3.61229913,3709.2,3709.1,0.1752]
[1753401621536,4.36599913,3709.2,3709.1,0.1752]
[1753401621878,1.67,3709.2,3709.1,0.1752]
[1753401622341,0.7537,3709.2,3709.1,0.1752]
[1753401622652,1.2156,3709.2,3709.1,0.1752]
[1753401622957,4.36599913,3709.2,3709.1,0.1752]
[1753401624112,4.36599913,3709.2,3709.1,0.04]
[1753401626872,4.36599913,3709.2,3709.1,1e-08]
[1753401629673,8.57299913,3709.2,3709.1,1e-08]
[1753401631249,8.57199913,3709.2,3709.1,1e-08]
[1753401635179,8.57099913,3709.2,3709.1,1e-08]
[1753401635668,3.4474626,3708.7,3708.6,1e-08]
[1753401635873,7.6514626,3708.7,3708.6,1e-08]
[1753401636078,2.69687162,3708.0,3706.7,0.7739]
[1753401636381,7.65297162,3708.0,3707.5,0.1352]
[1753401636549,8.11487162,3708.0,3707.5,0.1352]
[1753401636750,8.56927162,3708.0,3706.7,0.7739]
[1753401636955,8.56927162,3708.0,3707.9,1e-08]
[1753401638372,3.44797162,3708.0,3707.9,1e-08]
[1753401638543,7.65097162,3708.0,3707.9,1e-08]
[1753401638746,6.90087162,3708.0,3707.9,1e-08]
[1753401639676,7.81717162,3708.0,3707.9,1e-08]
[1753401639874,8.60137162,3708.0,3707.9,1e-08]
[1753401640038,8.73657162,3708.0,3707.9,1e-08]
[1753401642369,8.73757162,3708.0,3707.9,1e-08]
[1753401642568,3.48107162,3708.0,3707.9,1e-08]
[1753401642744,7.68507162,3708.0,3707.9,1e-08]
[1753401643678,2.69708984,3707.7,3707.6,0.08520001]
[1753401644182,4.204,3707.8,3707.6,0.55280001]
[1753401644183,4.203,3707.8,3707.6,0.55280001]
[1753401644341,4.203,3707.9,3707.6,0.55280001]
[1753401644680,2.69708984,3707.7,3707.6,0.08520001]
[1753401644879,6.90008984,3707.7,3707.6,0.08520001]
[1753401645385,2.69738084,3707.3,3707.2,0.001]
[1753401645844,2.69738084,3707.3,3707.2,0.1362]
[1753401646378,7.81988084,3707.3,3707.2,0.001]
[1753401647045,6.90138084,3707.3,3707.2,0.001]
[1753401649140,0.9265,3707.6,3707.2,0.001]
[1753401649344,2.69736002,3707.4,3707.2,0.4732]
[1753401649565,6.89925956,3707.5,3707.4,0.1352]
[1753401649772,2.69708165,3707.8,3707.4,0.4722]
[1753401649967,2.69708165,3707.8,3707.7,0.1352]
[1753401650560,0.1352,3708.4,3707.7,0.1352]
[1753401650761,2.69679081,3708.2,3707.8,0.8155]
[1753401651001,0.8829,3709.2,3707.9,1.0222]
[1753401651306,2.6962998,3708.8,3708.2,0.55]
[1753401651658,2.6962899,3708.8,3708.7,0.1352]
[1753401652202,2.69623436,3708.9,3708.7,0.1352]
[1753401652360,2.6962899,3708.8,3708.7,0.1352]
[1753401653803,2.6962899,3708.8,3708.0,0.55]
[1753401653804,2.69671422,3708.3,3708.0,0.55]
[1753401654005,2.69672905,3708.2,3708.0,0.55]
[1753401654180,4.6642,3708.8,3708.2,0.1352]
[1753401654367,4.6642,3708.8,3708.0,0.72847]
[1753401654368,0.751,3708.7,3708.5,0.1352]
[1753401654563,2.69693864,3708.0,3707.7,0.4722]
[1753401654960,2.69693864,3708.0,3707.9,0.1352]
[1753401656262,2.69893864,3708.0,3707.9,0.1352]
[1753401656459,3.48813864,3708.0,3707.9,0.1352]
[1753401659411,7.68613864,3708.0,3707.9,0.1352]
[1753401659906,8.60463864,3708.0,3707.9,0.1352]
[1753401660107,8.60463864,3708.0,3707.2,0.001]
[1753401660278,2.69738084,3707.3,3707.2,0.001]
[1753401660684,2.69738084,3707.3,3707.2,0.1362]
[1753401660884,6.89309343,3707.7,3707.2,0.1362]
[1753401661186,2.69727653,3707.5,3707.2,0.6084]
[1753401661405,2.69727653,3707.5,3707.3,0.4722]
[1753401661572,2.69727653,3707.5,3707.4,0.1352]
[1753401664516,7.34857653,3707.5,3707.4,0.1352]
[1753401665635,6.89227653,3707.5,3707.4,0.1352]
[1753401667662,0.002,3708.0,3707.4,1.3734]
[1753401667943,0.002,3708.0,3707.9,0.1352]
[1753401668147,2.69887162,3708.0,3707.9,0.1352]
[1753401668449,0.002,3708.0,3707.9,1.9419]
[1753401668609,0.002,3708.0,3707.9,2.13878716]
[1753401668943,0.002,3708.0,3707.9,0.9197]
[1753401669317,0.002,3708.0,3707.9,1.3919]
[1753401669861,2.69887162,3708.0,3707.9,0.1352]
[1753401670341,0.002,3708.0,3707.9,0.6074]
[1753401671441,0.002,3708.0,3707.9,0.1352]
[1753401671442,2.69887162,3708.0,3707.9,0.1352]
[1753401672159,0.002,3708.0,3707.9,0.6074]
[1753401672561,0.002,3708.0,3707.9,0.8942]
[1753401672777,0.002,3708.0,3707.9,1.3664]
[1753401673132,0.002,3708.0,3707.9,1.50304]
[1753401673879,0.002,3708.0,3707.9,5.08298436]
[1753401674030,0.002,3708.0,3707.9,8.1099538]
[1753401674386,0.002,3708.0,3707.9,8.08298436]
[1753401674580,0.002,3708.0,3707.9,11.08709236]
[1753401676068,0.002,3708.0,3707.9,29.50750636]
[1753401676869,0.002,3708.0,3707.9,5.05304]
[1753401677028,0.002,3708.0,3707.9,8.5624]
[1753401677446,0.002,3708.0,3707.9,9.1124]
[1753401677690,2.69887162,3708.0,3707.9,4.9164]
[1753401677986,0.002,3708.0,3707.9,8.6412]
[1753401678470,2.69887162,3708.0,3707.9,0.1352]
[1753401678675,2.69738084,3707.3,3707.2,0.8215]
[1753401678887,2.69738084,3707.3,3707.2,0.001]
[1753401679183,2.69738084,3707.3,3707.2,0.1362]
[1753401681484,4.36888084,3707.3,3707.2,0.1362]
[1753401682283,2.69738084,3707.3,3707.2,0.1362]
[1753401682857,2.69729336,3707.5,3707.2,0.5945]
[1753401683075,2.69729336,3707.5,3707.3,0.4583]
[1753401683381,2.69729336,3707.5,3707.4,0.1352]
[1753401684703,2.69717825,3707.6,3707.4,0.1352]
[1753401684910,0.002,3708.0,3707.4,4.6533]
[1753401685053,2.69694436,3707.9,3707.4,4.6533]
[1753401685256,2.69709962,3707.7,3707.5,0.4583]
[1753401685569,2.69701729,3707.8,3707.5,0.4583]
[1753401685875,0.002,3708.0,3707.6,0.1352]
[1753401686308,0.002,3708.0,3707.9,0.1352]
[1753401686598,0.002,3708.0,3707.9,0.6852]
[1753401686779,0.002,3708.0,3707.9,5.3395]
[1753401686986,0.002,3708.0,3707.9,4.8812]
[1753401687286,2.69887162,3708.0,3707.9,0.1352]
[1753401687693,3.16427162,3708.0,3707.9,0.1352]
[1753401688191,3.61237162,3708.0,3707.9,0.1352]
[1753401690502,2.69738084,3707.3,3707.2,0.001]
[1753401691006,0.9155,3708.0,3707.2,0.62147453]
[1753401691007,0.002,3708.0,3707.2,0.62147453]
[1753401691201,0.002,3708.0,3707.5,0.7745]
[1753401691365,0.002,3708.0,3707.9,0.6852]
[1753401691698,0.002,3708.0,3707.9,4.68846152]
[1753401691902,0.002,3708.8,3708.4,2.69656914]
[1753401692065,2.69833868,3708.8,3708.6,0.8154]
[1753401692260,2.69833868,3708.8,3708.7,0.1352]
[1753401693066,3.61183868,3708.8,3708.7,0.1352]
[1753401693913,2.69689422,3708.0,3707.7,0.831]
[1753401694205,2.69680818,3708.1,3707.8,4.199]
[1753401694383,2.69687162,3708.0,3707.9,0.1352]
[1753401695085,1.2544,3708.8,3707.9,0.5935]
[1753401695305,3.95073369,3708.8,3707.9,0.5935]
[1753401695609,2.69682123,3708.1,3707.9,0.4583]
[1753401695904,2.69682123,3708.1,3708.0,0.46573]
[1753401696111,2.69682123,3708.1,3708.0,0.1352]
[1753401697278,3.16222123,3708.1,3708.0,0.1352]
[1753401697693,2.69738084,3707.3,3707.2,0.001]
[1753401697883,2.69738084,3707.3,3707.2,4.749]
[1753401698212,2.69738084,3707.3,3707.2,4.3342]
[1753401699638,2.69738084,3707.3,3707.2,0.1362]
[1753401699785,3.16278084,3707.3,3707.2,0.1362]
[1753401700483,3.61088084,3707.3,3707.2,0.1362]
[1753401700687,4.36478084,3707.3,3707.2,0.001]
[1753401701730,2.69738084,3707.3,3707.2,0.001]
[1753401701936,2.69716258,3707.6,3707.2,0.001]
[1753401702238,2.69738084,3707.3,3707.2,0.4593]
[1753401702516,2.69736251,3707.4,3707.2,0.4593]
[1753401702718,4.195,3707.8,3707.2,0.5945]
[1753401702883,2.69738084,3707.3,3707.2,0.5945]
[1753401703222,2.69738084,3707.3,3707.2,0.001]
[1753401703381,2.69738084,3707.3,3707.2,0.1362]
[1753401703587,3.16278084,3707.3,3707.2,0.1362]
[1753401703787,3.61088084,3707.3,3707.2,0.1362]
[1753401704421,4.36658084,3707.3,3707.2,0.1362]
[1753401705328,2.69738084,3707.3,3707.2,0.1362]
[1753401706317,3.64918084,3707.3,3707.2,0.1362]
[1753401706624,3.64918084,3707.3,3707.2,0.001]
[1753401708622,2.6974536,3707.2,3707.1,0.001]
[1753401708822,3.6492536,3707.2,3707.1,0.001]
[1753401709019,3.1664536,3707.2,3707.1,0.001]
[1753401709222,3.6492536,3707.2,3707.1,0.001]
[1753401709420,2.6974536,3707.2,3707.1,0.001]
[1753401709625,2.6974536,3707.2,3707.1,0.1362]
[1753401710738,3.6492536,3707.2,3707.1,0.1362]
[1753401711896,2.6974536,3707.2,3707.1,0.1362]
[1753401713045,3.6492536,3707.2,3707.1,0.1362]
[1753401714026,2.6974536,3707.2,3707.1,0.1362]
[1753401717810,3.6492536,3707.2,3707.1,0.1362]
[1753401718012,4.4362536,3707.2,3707.1,0.1362]
[1753401718948,2.69781746,3706.7,3706.6,1e-08]
[1753401719250,7.79011746,3706.7,3706.6,1e-08]
[1753401719551,8.74191746,3706.7,3706.6,1e-08]
[1753401720535,8.13771746,3706.7,3706.6,1e-08]
[1753401720741,4.3312,3706.9,3706.6,1e-08]
[1753401720919,2.69781746,3706.7,3706.6,0.13520001]
[1753401721115,2.69781746,3706.7,3706.6,1e-08]
[1753401721355,2.69781746,3706.7,3706.6,0.13520001]
[1753401721766,3.48326224,3706.8,3706.6,0.13520001]
[1753401721927,2.69781746,3706.7,3706.6,0.13520001]
[1753401722746,7.84561746,3706.7,3706.6,1e-08]
[1753401723519,7.98081746,3706.7,3706.6,1e-08]
[1753401724414,3.78481746,3706.7,3706.6,1e-08]
[1753401724650,0.7652,3707.1,3706.6,1e-08]
[1753401724956,0.7652,3707.1,3706.6,0.13520001]
[1753401725129,2.69747058,3707.2,3706.7,0.4676]
[1753401725325,6.89347058,3707.2,3707.0,0.1352]
[1753401725725,0.764,3707.6,3707.0,0.1352]
[1753401726080,2.69736764,3707.4,3707.0,0.1352]
[1753401726219,2.69736764,3707.4,3706.9,0.7748]
[1753401726551,2.69730808,3707.4,3707.3,0.1352]
[1753401726940,3.49520663,3707.9,3707.3,0.1352]
[1753401727140,2.69708301,3707.8,3707.7,0.1352]
[1753401727748,3.64888301,3707.8,3707.7,0.1352]
[1753401728537,3.17988301,3707.8,3707.7,0.1352]
[1753401729141,2.69708301,3707.8,3707.7,0.1352]
[1753401729627,3.17988301,3707.8,3707.7,0.1352]
[1753401732365,3.64888301,3707.8,3707.7,0.1352]
[1753401732568,3.79008301,3707.8,3707.7,0.1352]
[1753401732738,3.64888301,3707.8,3707.7,0.1352]
[1753401733069,3.17988301,3707.8,3707.7,0.1352]
[1753401734174,2.69708301,3707.8,3707.7,0.1352]
[1753401735234,5.39417968,3707.7,3706.6,0.55000001]
[1753401735436,2.6975284,3707.1,3706.6,0.46630001]
[1753401735737,0.4678,3707.6,3706.7,0.55]
[1753401735971,4.195,3707.9,3707.0,0.55]
[1753401736173,2.69694436,3707.9,3707.1,0.4663]
[1753401736577,0.4698,3708.0,3707.2,0.55]
[1753401736578,0.002,3708.0,3707.2,0.55]
[1753401736748,2.69717234,3707.6,3707.4,0.8159]
[1753401737138,2.69717234,3707.6,3707.5,0.4663]
[1753401737565,2.69717234,3707.6,3707.4,0.8159]
[1753401737880,0.002,3708.0,3707.4,0.8159]
[1753401738074,0.002,3708.0,3707.3,0.15663]
[1753401738075,2.69752226,3707.2,3706.8,0.55]
[1753401738281,2.69752226,3707.2,3706.9,3.0]
[1753401738666,2.6973926,3707.3,3707.0,0.4663]
[1753401739177,2.69723533,3707.5,3707.0,0.4663]
[1753401739497,2.69710445,3707.7,3707.1,0.4663]
[1753401739686,2.6969448,3707.9,3707.2,0.8146]
[1753401739902,0.002,3708.0,3707.3,0.4663]
[1753401740102,2.69715444,3707.7,3707.3,0.4663]
[1753401740565,0.002,3708.0,3707.4,3.71358896]
[1753401740871,2.69694436,3707.9,3707.5,0.72525512]
[1753401741086,2.69701709,3707.8,3707.5,0.55]
[1753401741869,2.69701709,3707.8,3707.1,4.194]
[1753401741870,2.69731193,3707.4,3707.1,4.194]
[1753401742505,2.69738145,3707.3,3707.1,4.194]
[1753401742872,2.69733054,3707.4,3707.1,4.194]
[1753401743071,0.4678,3707.7,3706.9,0.8304]
[1753401743513,2.69751663,3707.2,3707.0,4.194]
[1753401743806,2.69752636,3707.1,3707.0,4.194]
[1753401743966,2.69746425,3707.2,3706.6,0.76610001]
[1753401744168,0.9377,3707.4,3706.6,1e-08]
[1753401744402,0.7656,3707.3,3706.6,1e-08]
[1753401744581,2.69781746,3706.7,3706.6,1e-08]
[1753401744980,3.63551746,3706.7,3706.6,1e-08]
[1753401745298,3.63551746,3706.7,3706.6,0.13520001]
[1753401746067,3.16561746,3706.7,3706.6,0.13520001]
[1753401746507,3.63551746,3706.7,3706.6,0.13520001]
[1753401747001,5.0948,3707.3,3706.6,0.13520001]
[1753401747192,2.69752636,3707.1,3707.0,0.1352]
[1753401747812,4.194,3707.3,3707.0,0.1352]
[1753401748308,6.89138084,3707.3,3707.2,0.1352]
[1753401748525,3.16518084,3707.3,3707.2,0.1352]
[1753401748870,3.63508084,3707.3,3707.2,0.1352]
[1753401749086,2.69781746,3706.7,3706.6,1e-08]
[1753401749390,0.7739,3707.2,3706.6,1e-08]
[1753401749391,2.69759913,3707.0,3706.9,0.1352]
[1753401749583,0.1352,3707.5,3706.9,0.1352]
[1753401749584,4.194,3707.4,3706.9,0.1352]
[1753401749978,2.69781746,3706.7,3706.6,1e-08]
[1753401750383,2.69781746,3706.7,3706.6,0.13520001]
[1753401750587,2.69774966,3706.8,3706.6,0.13520001]
[1753401751107,2.69781048,3706.8,3706.6,0.13520001]
[1753401751491,2.69773403,3706.9,3706.7,0.4663]
[1753401751876,2.69773403,3706.9,3706.8,0.1352]
[1753401752421,2.6976719,3706.9,3706.8,0.1352]
[1753401753130,3.6353719,3706.9,3706.8,0.1352]
[1753401753430,2.69781746,3706.7,3706.6,1e-08]
[1753401753922,3.16561746,3706.7,3706.6,0.13520001]
[1753401755111,2.69781746,3706.7,3706.6,0.13520001]
[1753401755804,2.69772234,3706.9,3706.6,0.13520001]
[1753401756003,0.7899,3707.4,3706.8,0.1352]
[1753401756216,6.89120942,3707.6,3706.8,0.6015]
[1753401756420,2.69730808,3707.4,3707.3,0.1352]
[1753401756922,3.16510808,3707.4,3707.3,0.1352]
[1753401757102,2.69730808,3707.4,3707.3,0.1352]
[1753401757618,3.16510808,3707.4,3707.3,0.1352]
[1753401758197,2.69781746,3706.7,3706.6,1e-08]
[1753401758596,3.16561746,3706.7,3706.6,0.13520001]
[1753401758820,2.69781746,3706.7,3706.6,0.13520001]
[1753401759022,2.69757257,3707.1,3706.6,0.60150001]
[1753401759345,2.69757257,3707.1,3706.8,0.7886]
[1753401759644,2.82731658,3707.4,3706.8,0.7886]
[1753401759645,2.69743651,3707.3,3707.0,0.1352]
[1753401759795,2.69746622,3707.2,3706.8,0.7886]
[1753401759996,2.69739312,3707.3,3707.1,0.1352]
[1753401760211,0.13,3707.4,3707.1,0.1352]
[1753401760433,0.13,3707.4,3707.2,0.4663]
[1753401760635,2.69720812,3707.6,3707.3,0.6015]
[1753401760842,2.82710552,3707.7,3707.5,0.1352]
[1753401761000,2.82710552,3707.7,3707.5,0.6015]
[1753401761337,2.82708984,3707.7,3707.6,0.4663]
[1753401761534,0.13,3707.7,3707.6,0.4663]
[1753401761701,2.82708984,3707.7,3707.6,0.4663]
[1753401761897,2.69716258,3707.6,3707.5,0.1352]
[1753401763454,0.13,3707.7,3707.5,0.1352]
[1753401763455,2.82710906,3707.7,3707.5,0.1352]
[1753401763668,0.13,3707.7,3707.5,0.1352]
[1753401763862,0.13,3707.7,3707.6,0.4663]
[1753401764427,2.82903483,3707.8,3707.6,0.4663]
[1753401764749,0.132,3707.8,3707.7,0.4663]
[1753401765059,2.82901709,3707.8,3707.7,0.6015]
[1753401765225,0.132,3707.8,3707.7,0.6015]
[1753401765634,2.82901709,3707.8,3707.7,0.6015]
[1753401766328,2.82901709,3707.8,3707.7,0.1352]
[1753401767670,0.132,3707.8,3707.7,0.1352]
[1753401768485,0.132,3707.8,3707.7,0.5713]
[1753401768703,0.132,3707.8,3707.7,1.1213]
[1753401768979,0.132,3707.8,3707.7,6.81565947]
[1753401769481,0.132,3707.8,3707.7,6.1338]
[1753401770744,0.132,3707.8,3707.7,9.16388984]
[1753401771164,0.132,3707.8,3707.7,12.16388984]
[1753401771985,0.132,3707.8,3707.7,4.9408]
[1753401772254,0.132,3707.8,3707.7,1.5047]
[1753401772504,0.132,3707.8,3707.7,4.8782]
[1753401774082,0.132,3707.8,3707.7,5.3143]
[1753401776592,0.132,3707.8,3707.7,4.8782]
[1753401777088,0.132,3707.8,3707.7,0.6852]
[1753401777290,2.82901709,3707.8,3707.7,4.8772]
[1753401778267,0.132,3707.8,3707.7,4.8772]
[1753401778823,2.82901709,3707.8,3707.7,0.1352]
[1753401778951,2.82901709,3707.8,3707.7,4.3272]
[1753401779667,2.82901709,3707.8,3707.7,0.1352]
[1753401779907,2.82901709,3707.8,3707.7,4.3272]
[1753401782652,0.132,3707.8,3707.7,6.55892]
[1753401782818,0.002,3708.0,3707.8,3.55]
[1753401783112,0.002,3708.0,3707.9,7.0448138]
[1753401783262,0.002,3708.0,3707.9,7.01784436]
[1753401783609,0.002,3708.0,3707.9,5.89006493]
[1753401783901,3.61187162,3708.0,3707.9,0.1352]
[1753401784063,4.38847162,3708.0,3707.9,4.3272]
[1753401784460,4.38847162,3708.0,3707.9,0.1352]
[1753401784660,2.69741823,3707.3,3706.8,0.7889]
[1753401784909,2.69741823,3707.3,3706.9,4.192]
[1753401785062,2.69725005,3707.5,3707.2,0.1352]
[1753401785270,0.7786,3708.0,3707.3,4.6281]
[1753401785271,2.69716276,3707.6,3707.3,4.6281]
[1753401785472,2.69730808,3707.4,3707.3,4.192]
[1753401785879,2.69730808,3707.4,3707.3,4.3272]
[1753401786183,2.69725708,3707.5,3707.3,4.3272]
[1753401786371,0.4526,3707.8,3707.3,0.617729]
[1753401786615,0.002,3708.0,3707.5,0.7922]
[1753401786794,2.69901859,3707.8,3707.5,0.81917235]
[1753401787010,0.002,3707.8,3707.6,0.4361]
[1753401787213,0.002,3707.8,3707.7,4.3262]
[1753401787508,0.002,3707.8,3707.7,5.33927089]
[1753401787724,0.002,3707.8,3707.7,5.95241798]
[1753401787894,0.002,3707.8,3707.7,5.92544709]
[1753401788553,0.002,3707.8,3707.7,9.25844709]
[1753401788852,0.002,3707.8,3707.7,8.92544709]
[1753401789442,0.002,3707.8,3707.7,11.95553693]
[1753401790443,0.002,3707.8,3707.7,12.39413693]
[1753401790647,0.002,3708.0,3707.9,6.46854436]
[1753401790930,0.002,3708.0,3707.9,6.29920813]
[1753401791129,0.002,3708.0,3707.9,9.0839]
[1753401791330,0.002,3708.0,3707.9,11.78084436]
[1753401791730,0.002,3708.0,3707.9,12.11384436]
[1753401793796,0.002,3708.0,3707.2,0.7606]
[1753401793797,0.757,3707.9,3707.2,0.7606]
[1753401793997,0.913,3707.8,3706.6,0.76060001]
[1753401794197,2.69738767,3707.3,3706.8,3.0]
[1753401794505,2.69752636,3707.1,3707.0,3.0]
[1753401794926,0.757,3707.9,3707.1,0.55]
[1753401795127,2.69738586,3707.3,3707.2,4.191]
[1753401795826,0.4526,3707.8,3707.2,4.191]
[1753401796036,2.69738084,3707.3,3707.2,4.191]
[1753401796224,2.69738084,3707.3,3707.2,4.65558529]
[1753401796420,2.69717745,3707.6,3707.2,0.46458529]
[1753401796619,2.69723533,3707.5,3707.4,3.0]
[1753401796917,2.69746795,3707.2,3707.0,0.55]
[1753401797113,2.69739708,3707.3,3707.2,3.0]
[1753401797344,2.69739708,3707.3,3707.1,4.741]
[1753401797735,2.6974536,3707.2,3707.1,4.741]
[1753401798056,2.69738084,3707.3,3707.2,3.55]
[1753401798255,1.232,3707.9,3707.2,3.55]
[1753401798559,2.69731363,3707.4,3707.3,1.3508]
[1753401798716,2.69731363,3707.4,3707.3,0.55]
[1753401800018,2.69731363,3707.4,3707.3,4.741]
[1753401800224,0.475,3707.8,3707.3,4.741]
[1753401800225,0.475,3707.8,3707.4,3.0]
[1753401800429,0.475,3707.8,3707.5,4.191]
[1753401800949,2.6971897,3707.6,3707.5,7.191]
[1753401802076,2.69711158,3707.7,3707.6,3.0]
[1753401802376,2.69711158,3707.7,3707.5,4.6285]
[1753401802527,0.002,3708.0,3707.6,3.0]
[1753401802728,0.002,3708.0,3707.8,3.55]
[1753401803038,0.002,3708.0,3707.9,25.02018036]
[1753401803359,0.002,3708.0,3707.9,22.09749336]
[1753401803686,0.002,3708.6,3708.0,7.01407162]
[1753401803829,0.002,3708.6,3708.4,14.11633873]
[1753401804023,0.002,3708.6,3708.5,6.24650802]
[1753401804229,0.002,3708.6,3708.5,7.78420802]
[1753401804467,0.002,3708.8,3708.7,7.0277626]
[1753401804760,0.002,3709.3,3708.8,6.2462899]
[1753401804963,0.002,3709.3,3708.8,8.48524515]
[1753401805451,0.002,3709.3,3708.8,5.45595525]
[1753401805651,0.002,3709.3,3708.8,9.64595525]
[1753401806247,2.69614927,3709.0,3708.8,3.0]
[1753401806432,0.477,3708.9,3708.8,3.0]
[1753401806636,0.477,3708.9,3708.8,7.19]
[1753401806837,3.1732172,3708.9,3708.8,3.0]
[1753401807057,3.1732172,3708.9,3708.8,7.19]
[1753401808448,2.6962899,3708.8,3708.7,0.1352]
[1753401808649,4.4084899,3708.8,3707.0,3.51894715]
[1753401808969,4.4084899,3708.8,3708.1,0.1352]
[1753401808970,2.69672617,3708.2,3708.1,0.1352]
[1753401809162,2.69672617,3708.2,3708.1,4.3252]
[1753401809364,4.40892617,3708.2,3708.1,0.1352]
[1753401809676,2.69679889,3708.1,3708.0,4.19]
[1753401809882,2.69701709,3707.8,3707.6,0.001]
[1753401810079,2.69708984,3707.7,3707.6,0.001]
[1753401810440,3.17208984,3707.7,3707.6,4.3262]
[1753401810844,3.60878984,3707.7,3707.6,4.3262]
[1753401811283,2.69781746,3706.7,3706.6,1e-08]
[1753401811655,3.13451746,3706.7,3706.6,4.32520001]
[1753401811843,3.60951746,3706.7,3706.6,4.32520001]
[1753401812887,3.60951746,3706.7,3706.6,0.13520001]
[1753401813386,3.60951746,3706.7,3706.6,1e-08]
[1753401818046,0.7741,3707.7,3706.6,1e-08]
[1753401818243,0.475,3707.6,3706.8,3.55]
[1753401818468,2.69756734,3707.1,3706.8,3.55]
[1753401818697,2.69781746,3706.7,3706.6,1e-08]
[1753401819057,3.17281746,3706.7,3706.6,1e-08]
[1753401819266,0.475,3706.7,3706.6,1e-08]
[1753401819570,3.17281746,3706.7,3706.6,4.19100001]
[1753401819779,0.475,3707.1,3706.6,4.19100001]
[1753401819980,2.69781746,3706.7,3706.6,4.19100001]
[1753401820348,3.17281746,3706.7,3706.6,4.19100001]
[1753401824096,3.17281746,3706.7,3706.6,1e-08]
[1753401824398,3.60951746,3706.7,3706.6,4.19100001]
[1753401824991,3.17281746,3706.7,3706.6,4.19100001]
[1753401825976,3.61881746,3706.7,3706.6,1e-08]
[1753401826498,4.40871746,3706.7,3706.6,1e-08]
[1753401827668,3.96271746,3706.7,3706.6,1e-08]
[1753401828091,3.96271746,3706.7,3706.6,0.13520001]
[1753401829296,4.39121746,3706.7,3706.6,0.13520001]
[1753401829498,2.69796303,3706.5,3706.2,0.001]
[1753401829712,2.69890964,3705.2,3705.1,0.001]
[1753401829868,2.69890964,3705.2,3702.0,0.004]
[1753401829869,2.69978401,3704.0,3703.9,4.191]
[1753401830069,0.4575,3704.0,3703.2,0.7785]
[1753401830268,0.9035,3704.0,3703.9,0.1352]
[1753401830466,3.60328401,3704.0,3703.9,0.1352]
[1753401830766,3.15728401,3704.0,3703.9,0.1352]
[1753401831723,0.8003,3704.3,3703.9,0.1352]
[1753401831924,2.69978401,3704.0,3703.7,4.201]
[1753401832130,1.2578,3704.3,3703.7,5.09597]
[1753401832344,2.6999298,3703.8,3703.7,8.09597]
[1753401832549,2.6999298,3703.8,3703.7,3.59847]
[1753401832837,3.1574298,3703.8,3703.7,4.3342]
[1753401834289,3.1574298,3703.8,3703.7,0.1352]